bitfinex/quotes_ETHUSD_20230117
["timestamp","ask_amount","ask_price","bid_price","bid_amount"]
[1673945456650,1.18560279,1567.7,1567.6,0.51638852]
[1673945456852,1.86293094,1567.7,1567.6,0.51638852]
[1673945457171,0.90732815,1567.7,1567.6,0.51638852]
[1673945457416,1.86293094,1567.7,1567.6,0.51638852]
[1673945457689,0.90732815,1567.7,1567.6,0.51638852]
[1673945457869,1.86293094,1567.7,1567.6,0.51638852]
[1673945458060,0.90732815,1567.7,1567.6,0.51638852]
[1673945463609,1.86293094,1567.7,1567.6,0.51638852]
[1673945464223,0.23,1567.7,1567.6,0.51638852]
[1673945464438,2.3899964,1567.8,1567.6,6.89555852]
[1673945464652,2.3899964,1567.8,1567.6,6.95870775]
[1673945464881,2.3899964,1567.8,1567.6,13.33787775]
[1673945465329,0.95560279,1567.8,1567.6,6.95870775]
[1673945466960,0.95560279,1567.8,1567.6,8.92235]
[1673945467535,0.95560279,1567.8,1567.6,10.38035]
[1673945467848,0.95560279,1567.8,1567.6,16.75952]
[1673945469366,10.4114964,1567.9,1567.6,16.75952]
[1673945469583,10.4114964,1567.9,1567.6,10.38035]
[1673945469792,10.4114964,1567.9,1567.6,8.41670775]
[1673945470035,0.95560279,1567.8,1567.6,8.41670775]
[1673945470229,0.95560279,1567.8,1567.6,6.95870775]
[1673945470860,10.4114964,1567.9,1567.6,6.95870775]
[1673945471816,10.4114964,1567.9,1567.6,9.02341302]
[1673945472004,10.4114964,1567.9,1567.6,12.53299727]
[1673945474266,8.97710279,1567.9,1567.6,12.53299727]
[1673945475622,10.4114964,1567.9,1567.6,12.53299727]
[1673945477793,8.97710279,1567.9,1567.6,12.53299727]
[1673945478251,10.4114964,1567.9,1567.6,12.53299727]
[1673945478458,8.97710279,1567.9,1567.6,12.53299727]
[1673945478673,10.4114964,1567.9,1567.6,12.53299727]
[1673945478878,8.97710279,1567.9,1567.6,12.53299727]
[1673945479202,10.4114964,1567.9,1567.6,12.53299727]
[1673945479773,10.4114964,1567.9,1567.6,9.02341302]
[1673945479985,0.95560279,1567.8,1567.6,6.95870775]
[1673945480247,0.95560279,1567.8,1567.6,0.57953775]
[1673945480459,0.95560279,1567.8,1567.6,0.51638852]
[1673945485570,10.4114964,1567.9,1567.6,0.51638852]
[1673945486029,0.95560279,1567.8,1567.6,0.51638852]
[1673945487612,10.4114964,1567.9,1567.6,6.89548852]
[1673945487826,10.4114964,1567.9,1567.6,6.95863775]
[1673945489804,0.95560279,1567.8,1567.6,9.02306533]
[1673945490016,0.95560279,1567.8,1567.6,10.43975723]
[1673945490193,0.95560279,1567.8,1567.6,12.50418481]
[1673945491047,10.4114964,1567.9,1567.6,12.50418481]
[1673945491269,0.95560279,1567.8,1567.6,9.02306533]
[1673945491493,0.95560279,1567.8,1567.6,6.95863775]
[1673945493655,0.95560279,1567.8,1567.6,8.17963775]
[1673945495554,0.95560279,1567.8,1567.6,10.24406533]
[1673945495757,0.95560279,1567.8,1567.6,1.80053775]
[1673945495966,0.95560279,1567.8,1567.6,0.51638852]
[1673945496178,2.82579384,1567.8,1567.6,0.51638852]
[1673945496501,0.23,1567.7,1567.6,0.51638852]
[1673945496726,0.23,1567.7,1567.6,2.09899908]
[1673945499556,0.23,1567.7,1567.6,4.59183853]
[1673945499796,0.23,1567.7,1567.6,7.59183853]
[1673945499970,0.23,1567.8,1567.6,7.65498776]
[1673945500200,0.23,1567.8,1567.7,4.58261056]
[1673945500924,2.3919964,1567.9,1567.7,4.58261056]
[1673945501135,0.95560279,1567.8,1567.7,3.0]
[1673945501357,0.95560279,1567.8,1567.7,4.58256096]
[1673945507298,4.3112265,1567.8,1567.7,4.58256096]
[1673945507506,5.02001732,1567.8,1567.6,0.57953775]
[1673945507667,1.18650917,1567.7,1567.6,0.51638852]
[1673945507879,1.18650917,1567.7,1567.6,2.09903619]
[1673945508122,1.83862182,1567.7,1567.6,2.09903619]
[1673945509969,1.83862182,1567.7,1567.6,0.51638852]
[1673945511718,3.27301543,1567.7,1567.6,0.51638852]
[1673945512451,1.83862182,1567.7,1567.6,0.51638852]
[1673945514045,8.34546445,1567.7,1567.6,0.51386141]
[1673945514174,5.49913033,1567.7,1567.6,0.51386141]
[1673945518277,6.45480101,1567.7,1567.6,0.51386141]
[1673945519010,12.83357101,1567.7,1567.6,0.51386141]
[1673945519949,11.87790033,1567.7,1567.6,0.51386141]
[1673945520181,12.83331161,1567.7,1567.6,0.51386141]
[1673945520393,26.96452292,1567.7,1567.6,6.141e-05]
[1673945520751,6.37958,1567.5,1567.2,0.04353149]
[1673945520907,0.95561251,1567.3,1567.2,0.04353149]
[1673945521322,1.18561251,1567.3,1567.2,0.04353149]
[1673945522906,0.23,1567.3,1567.2,0.04353149]
[1673945523110,1.18561251,1567.3,1567.2,0.04353149]
[1673945523326,2.38098053,1567.3,1567.2,0.04353149]
[1673945527520,0.23,1567.3,1567.2,0.04353149]
[1673945532203,1.23,1567.3,1567.2,0.04353149]
[1673945533337,0.23,1567.3,1567.2,0.04353149]
[1673945533552,1.23,1567.3,1567.2,0.04353149]
[1673945534817,4.34662407,1567.3,1567.2,0.04353149]
[1673945535056,6.94441973,1567.3,1567.2,0.04353149]
[1673945535267,7.01041973,1567.3,1567.2,0.04353149]
[1673945536083,7.48662112,1567.3,1567.2,0.04353149]
[1673945536307,7.00782112,1567.3,1567.2,0.04353149]
[1673945539139,6.00782112,1567.3,1567.2,0.04353149]
[1673945541360,0.29340139,1567.3,1567.2,0.04353149]
[1673945541674,0.22740139,1567.3,1567.2,0.04353149]
[1673945545082,0.066,1567.4,1567.2,7.42433149]
[1673945545255,10.0113,1567.6,1567.3,16.97378]
[1673945545448,0.066,1567.6,1567.5,1.218]
[1673945545663,2.78749882,1568.0,1567.5,33.03457068]
[1673945545664,1.02161251,1568.0,1567.5,33.03457068]
[1673945545931,1.13328191,1568.1,1567.6,3.9787]
[1673945546082,0.1776694,1568.1,1567.7,23.35482]
[1673945546400,0.1776694,1568.1,1567.8,8.713472]
[1673945546612,0.1776694,1568.1,1567.8,8.77662123]
[1673945547687,0.1776694,1568.1,1567.8,15.15498123]
[1673945548934,0.1796694,1568.1,1567.8,15.15298123]
[1673945549182,0.1776694,1568.1,1567.8,15.15498123]
[1673945549336,0.1776694,1568.1,1567.9,1.51549812]
[1673945549551,0.1776694,1568.1,1567.9,7.89327812]
[1673945549761,0.1776694,1568.1,1567.9,7.95642735]
[1673945555663,0.1776694,1568.1,1567.9,1.57864735]
[1673945555887,0.1776694,1568.1,1567.9,4.51549812]
[1673945556059,0.1776694,1568.1,1567.9,3.0]
[1673945556481,0.1776694,1568.1,1567.8,3.54174923]
[1673945556688,0.1776694,1568.1,1567.8,3.4786]
[1673945557794,0.23,1568.0,1567.8,3.4786]
[1673945559843,0.232,1568.0,1567.8,9.85691]
[1673945560112,0.1776694,1568.1,1567.8,13.16997515]
[1673945560330,0.1776694,1568.1,1567.8,21.01033515]
[1673945561007,0.1776694,1568.1,1567.8,19.54833515]
[1673945562279,0.1776694,1568.1,1567.8,13.16997515]
[1673945562469,0.1776694,1568.1,1567.8,9.92005923]
[1673945562842,0.23,1568.0,1567.8,3.54174923]
[1673945563155,0.23,1568.0,1567.8,3.4786]
[1673945565253,0.1776694,1568.1,1567.8,16.23515]
[1673945565426,0.1776694,1568.1,1567.8,16.29829923]
[1673945565641,0.1776694,1568.1,1567.9,8.00749992]
[1673945565989,0.1776694,1568.1,1568.0,3.0]
[1673945567028,0.1776694,1568.1,1568.0,9.37755]
[1673945567241,0.1776694,1568.1,1568.0,9.44069923]
[1673945567450,0.1776694,1568.1,1568.0,15.81824923]
[1673945567778,0.1776694,1568.1,1568.0,18.96662415]
[1673945568146,0.1776694,1568.1,1568.0,18.96271205]
[1673945568737,0.1776694,1568.1,1568.0,19.44131205]
[1673945570594,0.1776694,1568.1,1568.0,13.06376205]
[1673945570820,0.1776694,1568.1,1568.0,9.91538713]
[1673945571039,0.1776694,1568.1,1568.0,3.05923713]
[1673945571354,0.1776694,1568.1,1568.0,2.9960879]
[1673945573875,0.1776694,1568.1,1568.0,15.7511879]
[1673945574090,0.1776694,1568.1,1568.0,15.81433713]
[1673945574290,0.1776694,1568.1,1568.0,19.01018084]
[1673945582760,0.1776694,1568.1,1568.0,3.05923713]
[1673945583038,0.4076694,1568.1,1568.0,2.9960879]
[1673945583553,0.4076694,1568.1,1567.9,3.06314923]
[1673945583711,0.4076694,1568.1,1567.9,3.0]
[1673945584793,1.36328191,1568.1,1567.9,3.0]
[1673945586264,2.79670067,1568.1,1567.9,3.0]
[1673945586858,0.95561251,1568.0,1567.9,3.0]
[1673945588590,0.95561251,1568.0,1567.9,3.31932412]
[1673945596010,0.95561251,1568.0,1567.9,4.50782148]
[1673945596169,0.1776694,1568.1,1567.9,22.23078974]
[1673945596380,0.1776694,1568.1,1568.0,14.81593203]
[1673945596644,0.1776694,1568.1,1568.0,17.87908126]
[1673945596851,0.1776694,1568.1,1568.0,23.75851843]
[1673945597675,0.1776694,1568.1,1568.0,23.27991843]
[1673945599638,0.1776694,1568.1,1568.0,13.2872107]
[1673945599921,0.1776694,1568.1,1568.0,3.06314923]
[1673945600084,0.1776694,1568.1,1568.0,15.7551]
[1673945600296,0.1776694,1568.1,1568.0,15.8246068]
[1673945600539,0.1776694,1568.1,1568.0,17.4067652]
[1673945601683,0.1776694,1568.1,1568.0,15.8246068]
[1673945601992,0.1776694,1568.1,1568.0,18.99910489]
[1673945603714,0.1776694,1568.1,1568.0,20.58127496]
[1673945604231,0.1776694,1568.1,1568.0,22.04027496]
[1673945604619,0.1776694,1568.1,1568.0,20.58127496]
[1673945604827,0.1776694,1568.1,1568.0,18.99910489]
[1673945606247,0.1776694,1568.1,1568.0,12.62155489]
[1673945606407,0.1776694,1568.1,1568.0,3.0695068]
[1673945606596,0.1776694,1568.1,1568.0,3.00635757]
[1673945607490,0.1776694,1568.1,1568.0,3.0]
[1673945607700,1.13253631,1568.1,1567.9,0.38247335]
[1673945607880,1.13253631,1568.1,1567.9,0.31932412]
[1673945608942,1.13253631,1568.1,1567.9,6.69718412]
[1673945609249,1.13253631,1568.1,1567.9,6.76033335]
[1673945617359,1.13253631,1568.1,1567.9,0.38247335]
[1673945617570,2.56595507,1568.1,1567.9,3.31932412]
[1673945618794,1.13253631,1568.1,1567.9,3.31932412]
[1673945619091,2.56595507,1568.1,1567.9,3.31932412]
[1673945619473,1.13253631,1568.1,1567.9,3.31932412]
[1673945621352,1.13253631,1568.1,1567.9,9.69724412]
[1673945621559,1.13253631,1568.1,1567.9,9.76039335]
[1673945622134,0.1776694,1568.1,1567.9,9.76039335]
[1673945624358,1.13253631,1568.1,1567.9,9.76039335]
[1673945625669,0.1776694,1568.1,1567.9,9.76039335]
[1673945626663,1.13253631,1568.1,1567.9,9.76039335]
[1673945628010,0.1776694,1568.1,1567.9,9.76039335]
[1673945628228,0.1776694,1568.1,1567.9,12.21893835]
[1673945628395,0.1776694,1568.1,1567.9,18.59688835]
[1673945628606,0.1776694,1568.1,1567.9,20.05888835]
[1673945633512,0.1796694,1568.1,1567.9,20.05688835]
[1673945633705,0.1776694,1568.1,1567.9,20.05888835]
[1673945633929,0.1776694,1568.1,1568.0,2.00588883]
[1673945634279,0.1776694,1568.1,1568.0,14.76098883]
[1673945634426,0.1776694,1568.1,1568.0,14.82413806]
[1673945637167,0.1776694,1568.1,1568.0,17.82413806]
[1673945640761,0.1776694,1568.1,1568.0,19.40634324]
[1673945642308,0.1776694,1568.1,1568.0,15.81824923]
[1673945643775,1.13253631,1568.1,1568.0,15.81824923]
[1673945645277,0.1776694,1568.1,1568.0,17.40047727]
[1673945645509,0.17478234,1568.1,1568.0,30.72949996]
[1673945645743,0.17478234,1568.1,1568.0,37.24126695]
[1673945645877,8.234e-05,1568.1,1568.0,40.69508478]
[1673945646090,8.234e-05,1568.1,1568.0,42.11909053]
[1673945646350,8.234e-05,1568.1,1568.0,40.69508478]
[1673945647280,8.234e-05,1568.1,1568.0,37.19508478]
[1673945647637,8.234e-05,1568.1,1568.0,33.6028794]
[1673945649408,8.234e-05,1568.1,1568.0,34.55108293]
[1673945649942,8.234e-05,1568.1,1568.0,33.12831612]
[1673945652140,8.234e-05,1568.1,1568.0,42.96094019]
[1673945652352,0.17806059,1568.5,1568.2,19.12995]
[1673945652506,0.17806059,1568.5,1568.4,7.82592]
[1673945652722,0.17806059,1568.5,1568.4,10.88906923]
[1673945653409,0.17806059,1568.5,1568.4,17.26498923]
[1673945655295,0.17806059,1568.5,1568.4,15.81498923]
[1673945655490,0.17806059,1568.5,1568.4,18.37158865]
[1673945660492,0.17806059,1568.5,1568.4,18.36949138]
[1673945660930,0.17806059,1568.5,1568.4,22.94811545]
[1673945661146,0.17806059,1568.5,1568.4,29.32403545]
[1673945661565,0.17806059,1568.5,1568.4,26.20741138]
[1673945664884,0.17806059,1568.5,1568.4,26.20541138]
[1673945665063,0.17806059,1568.5,1568.4,24.74541138]
[1673945665435,0.18847442,1568.6,1568.5,6.716]
[1673945665644,0.17806059,1568.7,1568.6,1.0]
[1673945665891,0.17806059,1568.7,1568.6,37.09565927]
[1673945666120,0.17806059,1568.7,1568.6,42.30045974]
[1673945666342,0.17806059,1568.7,1568.6,36.85963932]
[1673945666529,0.17806059,1568.7,1568.6,34.71559454]
[1673945666696,0.17806059,1568.7,1568.6,41.59612847]
[1673945667381,0.17806059,1568.7,1568.6,39.45199112]
[1673945667592,0.17806059,1568.7,1568.6,41.59405028]
[1673945668429,0.17806059,1568.7,1568.6,39.45199112]
[1673945668822,0.17806059,1568.7,1568.6,37.87060988]
[1673945669033,0.17806059,1568.7,1568.6,34.75398581]
[1673945669886,0.17806059,1568.7,1568.6,22.18847923]
[1673945670127,0.65636059,1568.7,1568.6,0.06314923]
[1673945670340,0.65636059,1568.7,1568.4,6.43873923]
[1673945670758,0.65636059,1568.7,1568.4,0.06314923]
[1673945670929,0.65636059,1568.7,1568.4,12.7518]
[1673945671139,0.65636059,1568.7,1568.4,12.81494923]
[1673945672234,0.74007993,1568.7,1568.5,3.0]
[1673945673020,0.65636059,1568.7,1568.5,3.0]
[1673945674913,0.65636059,1568.7,1568.5,9.3755]
[1673945675119,0.65636059,1568.7,1568.5,9.43864923]
[1673945676597,0.17806059,1568.7,1568.5,15.81415923]
[1673945676970,0.17806059,1568.7,1568.5,18.03316315]
[1673945679278,0.17806059,1568.7,1568.5,9.43864923]
[1673945681118,0.18006059,1568.7,1568.5,3.06114923]
[1673945681323,3.29468466,1568.7,1568.5,3.0]
[1673945681585,5.71155157,1568.7,1568.4,3.06314923]
[1673945681903,1.04955516,1568.6,1568.3,6.43906923]
[1673945682057,2.04955516,1568.6,1568.3,6.43906923]
[1673945682485,1.04955516,1568.6,1568.3,6.43906923]
[1673945682744,0.4784,1568.6,1568.3,12.81539923]
[1673945683134,0.4784,1568.6,1568.4,3.0]
[1673945683337,0.4784,1568.6,1568.4,15.75184]
[1673945683525,0.4784,1568.6,1568.4,15.81498923]
[1673945683742,0.4784,1568.6,1568.4,9.43906923]
[1673945684749,1.44639275,1568.6,1568.4,9.43906923]
[1673945684901,0.96799275,1568.6,1568.4,9.43906923]
[1673945686112,0.96799275,1568.6,1568.4,3.06314923]
[1673945686262,0.96799275,1568.6,1568.4,3.0]
[1673945686263,2.92285966,1568.6,1568.4,3.0]
[1673945686472,2.92285966,1568.6,1568.3,3.06314923]
[1673945686686,2.92285966,1568.6,1568.3,3.0]
[1673945687004,1.92285966,1568.6,1568.3,3.0]
[1673945687835,2.92285966,1568.6,1568.3,3.0]
[1673945688595,0.29228597,1568.5,1568.3,3.0]
[1673945688800,6.10548373,1568.6,1568.3,3.0]
[1673945689012,0.23,1568.5,1568.3,3.0]
[1673945690363,0.23,1568.5,1568.3,2.99701148]
[1673945691366,0.23,1568.5,1568.2,0.06314923]
[1673945691367,5.73490974,1568.5,1568.2,0.06314923]
[1673945691540,3.45975788,1568.4,1568.0,14.31901923]
[1673945691896,2.50489097,1568.4,1568.0,14.31901923]
[1673945692046,3.45975788,1568.4,1568.0,14.31901923]
[1673945692781,3.45975788,1568.4,1568.1,3.0]
[1673945692990,0.34597579,1568.3,1568.1,3.0]
[1673945694635,3.11662407,1568.2,1568.1,3.0]
[1673945694941,3.34662407,1568.2,1568.0,3.06314923]
[1673945695249,3.34662407,1568.2,1568.0,3.0]
[1673945695444,4.66092406,1568.2,1568.0,3.0]
[1673945697501,0.23,1568.2,1568.0,9.37738]
[1673945697776,0.23,1568.2,1568.0,15.81807923]
[1673945698346,0.23,1568.2,1568.0,9.44052923]
[1673945698556,0.23,1568.2,1568.0,3.06314923]
[1673945698875,0.23,1568.2,1568.0,3.0]
[1673945704607,0.23,1568.2,1568.0,9.37754]
[1673945704823,0.23,1568.2,1568.0,9.44068923]
[1673945707473,8.4504,1568.3,1568.0,18.03783815]
[1673945707986,0.066,1568.3,1568.0,18.03783815]
[1673945708178,9.5614,1568.4,1568.0,18.03783815]
[1673945708179,9.6274,1568.4,1568.0,18.03783815]
[1673945708786,0.066,1568.4,1568.0,20.15595816]
[1673945709060,8.9957,1568.6,1568.1,1.58192187]
[1673945709257,8.9957,1568.6,1568.2,19.28778219]
[1673945709574,8.9957,1568.6,1568.2,19.35093142]
[1673945710194,8.9957,1568.6,1568.3,3.0]
[1673945710515,8.5173,1568.6,1568.4,6.37592]
[1673945710687,0.066,1568.6,1568.4,6.43906923]
[1673945710898,10.9093275,1568.7,1568.4,6.43906923]
[1673945711111,10.9093275,1568.7,1568.4,12.81498923]
[1673945711345,1.1989275,1568.7,1568.4,15.03410615]
[1673945711554,2.56634626,1568.7,1568.4,15.03410615]
[1673945711792,1.1329275,1568.7,1568.4,15.03410615]
[1673945711943,2.56634626,1568.7,1568.4,15.03410615]
[1673945712153,0.95486691,1568.6,1568.4,15.03410615]
[1673945713407,2.56634626,1568.7,1568.4,15.03410615]
[1673945714168,0.17806059,1568.7,1568.5,14.25117923]
[1673945714340,0.17806059,1568.7,1568.5,14.31432846]
[1673945715332,1.1329275,1568.7,1568.5,14.31432846]
[1673945715708,1.1329275,1568.7,1568.5,7.93886846]
[1673945716543,1.1349275,1568.7,1568.5,7.93686846]
[1673945716716,1.1329275,1568.7,1568.5,7.93886846]
[1673945717787,1.1329275,1568.7,1568.5,1.56372846]
[1673945718005,1.1329275,1568.7,1568.4,6.43906923]
[1673945719063,1.1329275,1568.7,1568.4,12.81498923]
[1673945720322,1.1329275,1568.7,1568.4,6.43906923]
[1673945721111,2.56634626,1568.7,1568.4,6.43906923]
[1673945721340,3.56634626,1568.7,1568.4,6.43906923]
[1673945721576,0.95486691,1568.6,1568.4,6.43906923]
[1673945723358,0.95486691,1568.6,1568.4,0.06314923]
[1673945723570,0.95486691,1568.6,1568.3,23.35420923]
[1673945724256,0.95486691,1568.6,1568.3,16.97817923]
[1673945724463,0.95486691,1568.6,1568.3,10.60214923]
[1673945724778,1.64510471,1568.6,1568.3,10.60214923]
[1673945727407,3.07852347,1568.6,1568.3,10.60214923]
[1673945729356,1.64510471,1568.6,1568.3,10.60214923]
[1673945730302,3.07852347,1568.6,1568.3,10.60214923]
[1673945731739,1.18486691,1568.5,1568.3,10.60214923]
[1673945731874,0.11848669,1568.4,1568.3,10.60214923]
[1673945732083,1.18486691,1568.5,1568.3,3.06314923]
[1673945732350,1.18486691,1568.5,1568.3,3.0]
[1673945732716,1.18486691,1568.5,1568.3,3.49901433]
[1673945736319,1.18486691,1568.5,1568.3,3.49638004]
[1673945739444,2.61828567,1568.5,1568.3,3.49638004]
[1673945739759,3.93057452,1568.5,1568.3,3.49638004]
[1673945740430,0.95486691,1568.4,1568.3,3.49638004]
[1673945740749,1.18486691,1568.4,1568.3,3.49638004]
[1673945741772,1.18486691,1568.4,1568.3,0.49901433]
[1673945742337,0.23,1568.4,1568.3,0.49901433]
[1673945742485,0.2268157,1568.4,1568.3,0.49901433]
[1673945743845,1.43107976,1568.4,1568.3,0.49901433]
[1673945745270,1.18168261,1568.4,1568.3,0.49901433]
[1673945755335,0.2268157,1568.4,1568.3,0.49901433]
[1673945760359,1.18168261,1568.4,1568.3,0.49901433]
[1673945760780,2.38828567,1568.5,1568.3,0.49901433]
[1673945761038,0.95486691,1568.5,1568.3,0.49901433]
[1673945763884,2.38828567,1568.5,1568.3,0.49901433]
[1673945765014,5.58828567,1568.5,1568.3,0.49901433]
[1673945765187,5.65428567,1568.5,1568.3,0.49901433]
[1673945765393,0.95486691,1568.4,1568.3,0.49901433]
[1673945769344,1.18486691,1568.4,1568.3,0.49901433]
[1673945770378,1.17486691,1568.4,1568.3,0.49901433]
[1673945770837,2.60828567,1568.4,1568.3,0.49901433]
[1673945771430,1.17486691,1568.4,1568.3,0.49901433]
[1673945774376,2.60828567,1568.4,1568.3,0.49901433]
[1673945776104,1.17486691,1568.4,1568.3,0.49901433]
[1673945776317,2.60828567,1568.4,1568.3,0.49901433]
[1673945776848,1.17686691,1568.4,1568.3,0.49901433]
[1673945777054,1.17486691,1568.4,1568.3,0.49901433]
[1673945777960,3.266,1568.5,1568.4,2.12012567]
[1673945778192,3.2,1568.5,1568.4,25.23523451]
[1673945778501,3.2,1568.5,1568.4,22.40286478]
[1673945779157,3.2,1568.5,1568.4,23.35220163]
[1673945779306,3.2,1568.5,1568.4,26.85752357]
[1673945779519,3.2,1568.5,1568.4,25.43358573]
[1673945780256,3.2,1568.5,1568.4,25.43692042]
[1673945781657,3.2,1568.5,1568.4,24.48758357]
[1673945782266,3.2,1568.5,1568.4,30.36085826]
[1673945782477,3.2,1568.5,1568.4,38.98185596]
[1673945782712,3.2,1568.5,1568.4,49.19785596]
[1673945782923,0.24406059,1568.7,1568.5,4.8981856]
[1673945783256,0.17806059,1568.7,1568.6,40.52204974]
[1673945783427,0.17806059,1568.7,1568.6,43.16511847]
[1673945783634,0.17806059,1568.7,1568.6,43.16311847]
[1673945783845,0.17806059,1568.7,1568.6,47.69245055]
[1673945784526,0.17806059,1568.7,1568.6,44.19419679]
[1673945785785,0.17806059,1568.7,1568.6,44.23062884]
[1673945786140,0.17806059,1568.7,1568.6,47.72888277]
[1673945786600,6.059e-05,1568.7,1568.6,48.67645072]
[1673945786821,0.20984552,1569.1,1568.8,6.716]
[1673945786981,1.61425156,1569.4,1569.3,7.38783844]
[1673945786982,0.2468328,1569.4,1569.3,7.38783844]
[1673945787204,0.1808328,1569.4,1569.3,7.45098767]
[1673945787416,0.1808328,1569.4,1569.3,18.84282644]
[1673945788030,0.1808328,1569.4,1569.3,34.71042644]
[1673945788241,0.1808328,1569.4,1569.3,37.93683953]
[1673945788554,0.1808328,1569.4,1569.3,41.42538519]
[1673945788766,0.20916997,1569.5,1569.4,1.0]
[1673945789021,0.20916997,1569.5,1569.4,34.822307]
[1673945789210,0.20916997,1569.5,1569.4,35.34158525]
[1673945789776,0.20916997,1569.5,1569.4,46.34158525]
[1673945789923,0.20916997,1569.5,1569.4,42.85550746]
[1673945790447,0.20916997,1569.5,1569.4,35.51650746]
[1673945790692,3.40916997,1569.5,1569.4,35.51650746]
[1673945792137,3.40916997,1569.5,1569.4,34.51650746]
[1673945792351,3.40916997,1569.5,1569.4,27.80050746]
[1673945792548,3.40916997,1569.5,1569.4,24.90137844]
[1673945794197,3.40916997,1569.5,1569.4,6.43500923]
[1673945794407,3.40916997,1569.5,1569.4,0.06314923]
[1673945794633,3.40916997,1569.5,1569.3,1.01557844]
[1673945796184,3.40916997,1569.5,1569.3,14.97602844]
[1673945796372,3.40916997,1569.5,1569.3,15.03917767]
[1673945796566,3.40916997,1569.5,1569.4,3.0]
[1673945797512,3.75008697,1569.5,1569.4,3.0]
[1673945797729,4.98008697,1569.5,1569.3,1.07872767]
[1673945797932,0.4781,1569.4,1569.3,1.01557844]
[1673945798668,1.4781,1569.4,1569.3,1.01557844]
[1673945799296,2.7676647,1569.4,1569.3,1.01557844]
[1673945799527,2.54111593,1569.4,1569.3,1.01557844]
[1673945799762,9.14297593,1569.4,1569.3,1.01557844]
[1673945800086,16.80283593,1569.4,1569.3,1.01557844]
[1673945800301,19.91946,1569.4,1569.3,1.01557844]
[1673945802130,4.05911593,1569.4,1569.3,1.01557844]
[1673945802344,1.70355123,1569.4,1569.3,1.01557844]
[1673945805735,2.70355123,1569.4,1569.3,1.01557844]
[1673945806619,17.3418953,1569.4,1569.3,1.01557844]
[1673945806927,17.4078953,1569.4,1569.3,1.01557844]
[1673945808339,17.4078953,1569.4,1569.3,1.01963894]
[1673945808553,20.26083953,1569.4,1569.3,1.01963894]
[1673945809306,4.40049546,1569.4,1569.3,1.01963894]
[1673945809520,1.48155123,1569.4,1569.3,1.01963894]
[1673945810449,7.85341123,1569.4,1569.3,1.01963894]
[1673945810703,7.91941123,1569.4,1569.3,1.01963894]
[1673945814450,18.8578953,1569.4,1569.3,1.01963894]
[1673945815869,19.81277115,1569.4,1569.3,1.01963894]
[1673945816013,23.04954484,1569.4,1569.3,1.01963894]
[1673945817703,24.4829636,1569.4,1569.3,1.01963894]
[1673945818409,23.52808775,1569.4,1569.3,1.01963894]
[1673945818961,23.04546026,1569.4,1569.3,1.01963894]
[1673945819547,24.47887902,1569.4,1569.3,1.01963894]
[1673945819830,34.31497,1569.4,1568.8,0.35619658]
[1673945820007,1.46,1569.0,1568.8,0.29304735]
[1673945820321,8.31199,1569.0,1568.8,0.29304735]
[1673945820630,0.23,1568.9,1568.8,0.29304735]
[1673945820790,0.002,1568.9,1568.8,0.29304735]
[1673945820999,0.066,1569.0,1568.8,0.29304735]
[1673945821244,0.63478199,1569.2,1568.8,0.29304735]
[1673945821623,0.63478199,1569.2,1568.8,3.29304735]
[1673945821886,0.63478199,1569.2,1568.8,4.30999109]
[1673945822294,0.15658199,1569.2,1568.8,4.30999109]
[1673945822930,0.23,1569.1,1568.8,4.30999109]
[1673945825980,6.59531199,1569.2,1568.8,4.30999109]
[1673945825981,0.22258199,1569.2,1568.8,17.05856109]
[1673945826189,0.15658199,1569.2,1569.0,12.74696]
[1673945826402,0.15658199,1569.2,1569.1,9.37308]
[1673945826617,0.15658199,1569.2,1569.1,9.43622923]
[1673945827196,0.15658199,1569.2,1569.1,3.06314923]
[1673945827462,0.15658199,1569.2,1569.1,3.94366292]
[1673945831248,0.15658199,1569.2,1569.1,27.63552699]
[1673945831452,0.15658199,1569.2,1569.1,41.40078719]
[1673945831776,3.2,1569.3,1569.1,38.00037771]
[1673945831982,3.2,1569.3,1569.2,14.78907633]
[1673945832330,0.27516997,1569.5,1569.2,41.24769613]
[1673945832484,0.20916997,1569.5,1569.4,20.56958]
[1673945832660,0.20916997,1569.5,1569.4,28.33021554]
[1673945832869,0.20916997,1569.5,1569.4,31.84098458]
[1673945833079,0.20916997,1569.5,1569.4,20.77163827]
[1673945835035,0.20916997,1569.5,1569.4,14.39977827]
[1673945837569,3.40916997,1569.5,1569.4,14.39977827]
[1673945838245,3.40916997,1569.5,1569.4,20.77163827]
[1673945838718,0.20916997,1569.5,1569.4,14.39977827]
[1673945838946,0.20916997,1569.5,1569.4,3.06314923]
[1673945839124,0.20916997,1569.5,1569.3,3.43505497]
[1673945839453,0.20916997,1569.5,1569.3,3.37190574]
[1673945840514,1.16042064,1569.5,1569.3,3.37190574]
[1673945840716,0.20916997,1569.5,1569.3,3.37190574]
[1673945841096,1.25942364,1569.5,1569.3,3.37190574]
[1673945841536,2.21067431,1569.5,1569.3,3.37190574]
[1673945842611,2.21267431,1569.5,1569.3,3.37190574]
[1673945842929,0.20916997,1569.5,1569.3,3.37190574]
[1673945843102,0.20916997,1569.5,1569.3,9.74407574]
[1673945843456,0.20916997,1569.5,1569.3,9.80722497]
[1673945843822,0.20916997,1569.5,1569.3,16.17948497]
[1673945844285,0.066,1569.8,1569.4,18.18972]
[1673945844474,0.96413637,1569.9,1569.5,8.190232]
[1673945844815,0.96413637,1569.9,1569.6,3.0]
[1673945845336,2.39101238,1569.9,1569.6,3.0]
[1673945845552,0.95125067,1569.8,1569.6,3.0]
[1673945845712,7.80970171,1569.9,1569.5,3.06314923]
[1673945845713,8.82695238,1569.9,1569.5,3.06314923]
[1673945845912,0.95125067,1569.8,1569.5,3.0]
[1673945846131,2.18125067,1569.8,1569.5,3.0]
[1673945846339,8.55159067,1569.8,1569.4,3.06314923]
[1673945846603,15.41500668,1569.8,1569.4,3.0]
[1673945846918,0.95125067,1569.7,1569.4,3.0]
[1673945847131,2.49275134,1569.7,1569.4,3.0]
[1673945847442,0.23,1569.6,1569.4,3.0]
[1673945848388,1.18125067,1569.6,1569.4,3.0]
[1673945850029,7.55237067,1569.6,1569.3,3.43505497]
[1673945850202,0.4781,1569.5,1569.3,3.37390574]
[1673945850356,2.06734667,1569.5,1569.3,3.37190574]
[1673945850722,3.01859734,1569.5,1569.3,3.37190574]
[1673945851203,13.50674141,1569.5,1569.3,3.37190574]
[1673945851412,0.23,1569.4,1569.3,3.37190574]
[1673945851662,6.60186,1569.4,1569.3,3.37190574]
[1673945851846,10.46515974,1569.4,1569.3,3.37190574]
[1673945852470,9.46515974,1569.4,1569.3,3.37190574]
[1673945852895,10.46515974,1569.4,1569.3,3.37190574]
[1673945853134,9.46515974,1569.4,1569.3,3.37190574]
[1673945855874,10.41641041,1569.4,1569.3,3.37190574]
[1673945856713,9.46515974,1569.4,1569.3,3.37190574]